Workbook

Sheet м
A3: Номер | B3: Имя | G3: номер | H3: команда | I3: вид 1 | L3: вид 2 | O3: вид 3 | R3: вид 4 | U3: вид 5 | X3: вид 6 | Z3: вид 7 | AC3: многоборье | AD3: вид 2
H4: школа | I4: рез-т | J4: очки | K4: место | L4: рез-т | M4: очки | N4: место | O4: рез-т | P4: очки | Q4: место | R4: рез-т | S4: очки | T4: место | U4: рез-т | V4: очки | W4: место | X4: рез-т | Y4: очки | Z4: рез-т | AA4: очки | AB4: место | AC4: сумма | AD4: место
A6: 1 | B6: Иван | C6: 2001-10-13 | D6: =DATEDIF(C6,TODAY(),"y") -> 15 | E6: =LOOKUP(DATEDIF(C6,TODAY(),"y"),{6;7;8;9;10;11;12;13;14;15;16;17;18;19;20;21;22;23;24;25;26;27;28;29;30;31;32;33;34;35;36;37;38;39;40;41;42;43;44;45;46;47;48;49;50;51;52;53;54;55;56;57;58;59;60;61;62;63;64;65;66;67;68;69;70},{"1";"1";"1";"2";"2";"3";"3";"4";"4";"4";"5";"5";"6";"6";"6";"6";"6";"6";"6";"6";"6";"6";"6";"6";"7";"7";"7";"7";"7";"7";"7";"7";"7";"7";"8";"8";"8";"8";"8";"8";"8";"8";"8";"8";"9";"9";"9";"9";"9";"9";"9";"9";"9";"9";"10";"10";"10";"10";"10";"10";"10";"10";"10";"10";"11"}) -> 4 | F6: муж | G6: 00-00-0000011 | H6: №2 | I6: 6 | J6: =IF(I6>50,100,MATCH(I6,ОСН!$B$1:$B$100,0)*IF(I6=0,0,1))*IF(I6=0,0,1) -> 6 | K6: =SUM(N(FREQUENCY((J6<J$6:J$23)*J$6:J$23,J$6:J$23)>0)) -> 10 | L6: 27 | M6: =IFERROR(MATCH(L6,ОСН!$D$1:$D$100,-1),MATCH("0:"&L6,ОСН!$D$1:$D$100,-1)) -> 98 | N6: =SUM(N(FREQUENCY((M6<M$6:M$23)*M$6:M$23,M$6:M$23)>0)) -> 2 | O6: 61 | P6: =MATCH(O6,ОСН!$E$1:$E$100,1) -> 42 | Q6: =SUM(N(FREQUENCY((P6<P$6:P$23)*P$6:P$23,P$6:P$23)>0)) -> 3 | R6: 266 | S6: =MATCH(R6,ОСН!$A$1:$A$100,1) -> 68 | T6: =SUM(N(FREQUENCY((S6<S$6:S$23)*S$6:S$23,S$6:S$23)>0)) -> 1 | U6: 17 | V6: =MATCH(U6,ОСН!$G$1:$G$100,1) -> 44 | W6: =SUM(N(FREQUENCY((V6<V$6:V$23)*V$6:V$23,V$6:V$23)>0)) -> 2 | X6: 0 | Y6: =MATCH(X6,ОСН!$C$1:$C$100,1) -> 20 | Z6: 35.09 | AA6: 0 | AB6: =SUM(N(FREQUENCY((AA6<AA$6:AA$23)*AA$6:AA$23,AA$6:AA$23)>0)) -> 8 | AC6: =SUM(J6,M6,P6,S6,AA6,V6,Y6) -> 278 | AD6: 1
A7: 2 | B7: Дмитрий | C7: 2001-10-13 | D7: =DATEDIF(C7,TODAY(),"y") -> 15 | E7: =LOOKUP(DATEDIF(C7,TODAY(),"y"),{6;7;8;9;10;11;12;13;14;15;16;17;18;19;20;21;22;23;24;25;26;27;28;29;30;31;32;33;34;35;36;37;38;39;40;41;42;43;44;45;46;47;48;49;50;51;52;53;54;55;56;57;58;59;60;61;62;63;64;65;66;67;68;69;70},{"1";"1";"1";"2";"2";"3";"3";"4";"4";"4";"5";"5";"6";"6";"6";"6";"6";"6";"6";"6";"6";"6";"6";"6";"7";"7";"7";"7";"7";"7";"7";"7";"7";"7";"8";"8";"8";"8";"8";"8";"8";"8";"8";"8";"9";"9";"9";"9";"9";"9";"9";"9";"9";"9";"10";"10";"10";"10";"10";"10";"10";"10";"10";"10";"11"}) -> 4 | F7: муж | G7: 00-00-0000001 | H7: №12 | I7: 10 | J7: =IF(I7>50,100,MATCH(I7,ОСН!$B$1:$B$100,0)*IF(I7=0,0,1))*IF(I7=0,0,1) -> 10 | K7: =SUM(N(FREQUENCY((J7<J$6:J$23)*J$6:J$23,J$6:J$23)>0)) -> 8 | M7: =IFERROR(MATCH(L7,ОСН!$D$1:$D$100,-1),MATCH("0:"&L7,ОСН!$D$1:$D$100,-1)) -> 100 | N7: =SUM(N(FREQUENCY((M7<M$6:M$23)*M$6:M$23,M$6:M$23)>0)) -> 1 | O7: 47 | P7: =MATCH(O7,ОСН!$E$1:$E$100,1) -> 27 | Q7: =SUM(N(FREQUENCY((P7<P$6:P$23)*P$6:P$23,P$6:P$23)>0)) -> 11 | R7: 205 | S7: =MATCH(R7,ОСН!$A$1:$A$100,1) -> 38 | T7: =SUM(N(FREQUENCY((S7<S$6:S$23)*S$6:S$23,S$6:S$23)>0)) -> 10 | U7: 2 | V7: =MATCH(U7,ОСН!$G$1:$G$100,1) -> 4 | W7: =SUM(N(FREQUENCY((V7<V$6:V$23)*V$6:V$23,V$6:V$23)>0)) -> 13 | X7: 0 | Y7: =MATCH(X7,ОСН!$C$1:$C$100,1) -> 20 | AA7: =MATCH(Z7,ОСН!$F$1:$F$100,-1)*IF(Z7=0,0,1) -> 0 | AB7: =SUM(N(FREQUENCY((AA7<AA$6:AA$23)*AA$6:AA$23,AA$6:AA$23)>0)) -> 8 | AC7: =SUM(J7,M7,P7,S7,AA7,V7,Y7) -> 199 | AD7: 2
A8: 3 | B8: Валерий | C8: 2001-10-13 | D8: =DATEDIF(C8,TODAY(),"y") -> 15 | E8: =LOOKUP(DATEDIF(C8,TODAY(),"y"),{6;7;8;9;10;11;12;13;14;15;16;17;18;19;20;21;22;23;24;25;26;27;28;29;30;31;32;33;34;35;36;37;38;39;40;41;42;43;44;45;46;47;48;49;50;51;52;53;54;55;56;57;58;59;60;61;62;63;64;65;66;67;68;69;70},{"1";"1";"1";"2";"2";"3";"3";"4";"4";"4";"5";"5";"6";"6";"6";"6";"6";"6";"6";"6";"6";"6";"6";"6";"7";"7";"7";"7";"7";"7";"7";"7";"7";"7";"8";"8";"8";"8";"8";"8";"8";"8";"8";"8";"9";"9";"9";"9";"9";"9";"9";"9";"9";"9";"10";"10";"10";"10";"10";"10";"10";"10";"10";"10";"11"}) -> 4 | F8: муж | G8: 00-00-0000010 | H8: №10 | I8: 13 | J8: =IF(I8>50,100,MATCH(I8,ОСН!$B$1:$B$100,0)*IF(I8=0,0,1))*IF(I8=0,0,1) -> 16 | K8: =SUM(N(FREQUENCY((J8<J$6:J$23)*J$6:J$23,J$6:J$23)>0)) -> 7 | L8: 32.8 | M8: =IFERROR(MATCH(L8,ОСН!$D$1:$D$100,-1),MATCH("0:"&L8,ОСН!$D$1:$D$100,-1)) -> 78 | N8: =SUM(N(FREQUENCY((M8<M$6:M$23)*M$6:M$23,M$6:M$23)>0)) -> 3 | O8: 47 | P8: =MATCH(O8,ОСН!$E$1:$E$100,1) -> 27 | Q8: =SUM(N(FREQUENCY((P8<P$6:P$23)*P$6:P$23,P$6:P$23)>0)) -> 11 | R8: 209 | S8: =MATCH(R8,ОСН!$A$1:$A$100,1) -> 39 | T8: =SUM(N(FREQUENCY((S8<S$6:S$23)*S$6:S$23,S$6:S$23)>0)) -> 9 | U8: 2 | V8: =MATCH(U8,ОСН!$G$1:$G$100,1) -> 4 | W8: =SUM(N(FREQUENCY((V8<V$6:V$23)*V$6:V$23,V$6:V$23)>0)) -> 13 | X8: 0 | Y8: =MATCH(X8,ОСН!$C$1:$C$100,1) -> 20 | AA8: =MATCH(Z8,ОСН!$F$1:$F$100,-1)*IF(Z8=0,0,1) -> 0 | AB8: =SUM(N(FREQUENCY((AA8<AA$6:AA$23)*AA$6:AA$23,AA$6:AA$23)>0)) -> 8 | AC8: =SUM(J8,M8,P8,S8,AA8,V8,Y8) -> 184 | AD8: 3
A9: 4 | B9: Александр | C9: 2001-10-13 | D9: =DATEDIF(C9,TODAY(),"y") -> 15 | E9: =LOOKUP(DATEDIF(C9,TODAY(),"y"),{6;7;8;9;10;11;12;13;14;15;16;17;18;19;20;21;22;23;24;25;26;27;28;29;30;31;32;33;34;35;36;37;38;39;40;41;42;43;44;45;46;47;48;49;50;51;52;53;54;55;56;57;58;59;60;61;62;63;64;65;66;67;68;69;70},{"1";"1";"1";"2";"2";"3";"3";"4";"4";"4";"5";"5";"6";"6";"6";"6";"6";"6";"6";"6";"6";"6";"6";"6";"7";"7";"7";"7";"7";"7";"7";"7";"7";"7";"8";"8";"8";"8";"8";"8";"8";"8";"8";"8";"9";"9";"9";"9";"9";"9";"9";"9";"9";"9";"10";"10";"10";"10";"10";"10";"10";"10";"10";"10";"11"}) -> 4 | F9: муж | H9: №3 | I9: 9 | J9: =IF(I9>50,100,MATCH(I9,ОСН!$B$1:$B$100,0)*IF(I9=0,0,1))*IF(I9=0,0,1) -> 9 | K9: =SUM(N(FREQUENCY((J9<J$6:J$23)*J$6:J$23,J$6:J$23)>0)) -> 9 | L9: 41.9 | M9: =IFERROR(MATCH(L9,ОСН!$D$1:$D$100,-1),MATCH("0:"&L9,ОСН!$D$1:$D$100,-1)) -> 56 | N9: =SUM(N(FREQUENCY((M9<M$6:M$23)*M$6:M$23,M$6:M$23)>0)) -> 4 | O9: 51 | P9: =MATCH(O9,ОСН!$E$1:$E$100,1) -> 31 | Q9: =SUM(N(FREQUENCY((P9<P$6:P$23)*P$6:P$23,P$6:P$23)>0)) -> 9 | R9: 240 | S9: =MATCH(R9,ОСН!$A$1:$A$100,1) -> 55 | T9: =SUM(N(FREQUENCY((S9<S$6:S$23)*S$6:S$23,S$6:S$23)>0)) -> 2 | U9: 14 | V9: =MATCH(U9,ОСН!$G$1:$G$100,1) -> 38 | W9: =SUM(N(FREQUENCY((V9<V$6:V$23)*V$6:V$23,V$6:V$23)>0)) -> 4 | X9: 10 | Y9: =MATCH(X9,ОСН!$C$1:$C$100,1) -> 40 | Z9: 0 | AA9: 0 | AB9: =SUM(N(FREQUENCY((AA9<AA$6:AA$23)*AA$6:AA$23,AA$6:AA$23)>0)) -> 8 | AC9: =SUM(J9,M9,P9,S9,AA9,V9,Y9) -> 229 | AD9: 4
A10: 5 | B10: Андрей | C10: 2001-10-13 | D10: =DATEDIF(C10,TODAY(),"y") -> 15 | E10: =LOOKUP(DATEDIF(C10,TODAY(),"y"),{6;7;8;9;10;11;12;13;14;15;16;17;18;19;20;21;22;23;24;25;26;27;28;29;30;31;32;33;34;35;36;37;38;39;40;41;42;43;44;45;46;47;48;49;50;51;52;53;54;55;56;57;58;59;60;61;62;63;64;65;66;67;68;69;70},{"1";"1";"1";"2";"2";"3";"3";"4";"4";"4";"5";"5";"6";"6";"6";"6";"6";"6";"6";"6";"6";"6";"6";"6";"7";"7";"7";"7";"7";"7";"7";"7";"7";"7";"8";"8";"8";"8";"8";"8";"8";"8";"8";"8";"9";"9";"9";"9";"9";"9";"9";"9";"9";"9";"10";"10";"10";"10";"10";"10";"10";"10";"10";"10";"11"}) -> 4 | F10: муж | G10: 00-00-0000014 | H10: №1 | I10: 14 | J10: =IF(I10>50,100,MATCH(I10,ОСН!$B$1:$B$100,0)*IF(I10=0,0,1))*IF(I10=0,0,1) -> 18 | K10: =SUM(N(FREQUENCY((J10<J$6:J$23)*J$6:J$23,J$6:J$23)>0)) -> 6 | L10: 42.7 | M10: =IFERROR(MATCH(L10,ОСН!$D$1:$D$100,-1),MATCH("0:"&L10,ОСН!$D$1:$D$100,-1)) -> 54 | N10: =SUM(N(FREQUENCY((M10<M$6:M$23)*M$6:M$23,M$6:M$23)>0)) -> 5 | O10: 68 | P10: =MATCH(O10,ОСН!$E$1:$E$100,1) -> 56 | Q10: =SUM(N(FREQUENCY((P10<P$6:P$23)*P$6:P$23,P$6:P$23)>0)) -> 1 | R10: 230 | S10: =MATCH(R10,ОСН!$A$1:$A$100,1) -> 50 | T10: =SUM(N(FREQUENCY((S10<S$6:S$23)*S$6:S$23,S$6:S$23)>0)) -> 4 | U10: 12 | V10: =MATCH(U10,ОСН!$G$1:$G$100,1) -> 34 | W10: =SUM(N(FREQUENCY((V10<V$6:V$23)*V$6:V$23,V$6:V$23)>0)) -> 5 | X10: 0 | Y10: =MATCH(X10,ОСН!$C$1:$C$100,1) -> 20 | Z10: 9.43 | AA10: =MATCH(Z10,ОСН!$F$1:$F$100,-1)*IF(Z10=0,0,1) -> 81 | AB10: =SUM(N(FREQUENCY((AA10<AA$6:AA$23)*AA$6:AA$23,AA$6:AA$23)>0)) -> 1 | AC10: =SUM(J10,M10,P10,S10,AA10,V10,Y10) -> 313 | AD10: 5
A11: 6 | B11: Дмитрий | C11: 2001-10-13 | D11: =DATEDIF(C11,TODAY(),"y") -> 15 | E11: =LOOKUP(DATEDIF(C11,TODAY(),"y"),{6;7;8;9;10;11;12;13;14;15;16;17;18;19;20;21;22;23;24;25;26;27;28;29;30;31;32;33;34;35;36;37;38;39;40;41;42;43;44;45;46;47;48;49;50;51;52;53;54;55;56;57;58;59;60;61;62;63;64;65;66;67;68;69;70},{"1";"1";"1";"2";"2";"3";"3";"4";"4";"4";"5";"5";"6";"6";"6";"6";"6";"6";"6";"6";"6";"6";"6";"6";"7";"7";"7";"7";"7";"7";"7";"7";"7";"7";"8";"8";"8";"8";"8";"8";"8";"8";"8";"8";"9";"9";"9";"9";"9";"9";"9";"9";"9";"9";"10";"10";"10";"10";"10";"10";"10";"10";"10";"10";"11"}) -> 4 | F11: муж | G11: 00-00-0000005 | H11: №6 | I11: 22 | J11: =IF(I11>50,100,MATCH(I11,ОСН!$B$1:$B$100,0)*IF(I11=0,0,1))*IF(I11=0,0,1) -> 34 | K11: =SUM(N(FREQUENCY((J11<J$6:J$23)*J$6:J$23,J$6:J$23)>0)) -> 3 | L11: 43.3 | M11: =IFERROR(MATCH(L11,ОСН!$D$1:$D$100,-1),MATCH("0:"&L11,ОСН!$D$1:$D$100,-1)) -> 53 | N11: =SUM(N(FREQUENCY((M11<M$6:M$23)*M$6:M$23,M$6:M$23)>0)) -> 6 | O11: 66 | P11: =MATCH(O11,ОСН!$E$1:$E$100,1) -> 52 | Q11: =SUM(N(FREQUENCY((P11<P$6:P$23)*P$6:P$23,P$6:P$23)>0)) -> 2 | R11: 220 | S11: =MATCH(R11,ОСН!$A$1:$A$100,1) -> 45 | T11: =SUM(N(FREQUENCY((S11<S$6:S$23)*S$6:S$23,S$6:S$23)>0)) -> 6 | U11: 19 | V11: =MATCH(U11,ОСН!$G$1:$G$100,1) -> 48 | W11: =SUM(N(FREQUENCY((V11<V$6:V$23)*V$6:V$23,V$6:V$23)>0)) -> 1 | X11: 0 | Y11: =MATCH(X11,ОСН!$C$1:$C$100,1) -> 20 | Z11: 20.47 | AA11: =MATCH(Z11,ОСН!$F$1:$F$100,-1)*IF(Z11=0,0,1) -> 17 | AB11: =SUM(N(FREQUENCY((AA11<AA$6:AA$23)*AA$6:AA$23,AA$6:AA$23)>0)) -> 4 | AC11: =SUM(J11,M11,P11,S11,AA11,V11,Y11) -> 269 | AD11: 6
A12: 7 | B12: Андрей | C12: 2001-10-13 | D12: =DATEDIF(C12,TODAY(),"y") -> 15 | E12: =LOOKUP(DATEDIF(C12,TODAY(),"y"),{6;7;8;9;10;11;12;13;14;15;16;17;18;19;20;21;22;23;24;25;26;27;28;29;30;31;32;33;34;35;36;37;38;39;40;41;42;43;44;45;46;47;48;49;50;51;52;53;54;55;56;57;58;59;60;61;62;63;64;65;66;67;68;69;70},{"1";"1";"1";"2";"2";"3";"3";"4";"4";"4";"5";"5";"6";"6";"6";"6";"6";"6";"6";"6";"6";"6";"6";"6";"7";"7";"7";"7";"7";"7";"7";"7";"7";"7";"8";"8";"8";"8";"8";"8";"8";"8";"8";"8";"9";"9";"9";"9";"9";"9";"9";"9";"9";"9";"10";"10";"10";"10";"10";"10";"10";"10";"10";"10";"11"}) -> 4 | F12: муж | G12: 00-00-0000003 | H12: №9 | I12: 26 | J12: =IF(I12>50,100,MATCH(I12,ОСН!$B$1:$B$100,0)*IF(I12=0,0,1))*IF(I12=0,0,1) -> 42 | K12: =SUM(N(FREQUENCY((J12<J$6:J$23)*J$6:J$23,J$6:J$23)>0)) -> 2 | L12: 44.6 | M12: =IFERROR(MATCH(L12,ОСН!$D$1:$D$100,-1),MATCH("0:"&L12,ОСН!$D$1:$D$100,-1)) -> 51 | N12: =SUM(N(FREQUENCY((M12<M$6:M$23)*M$6:M$23,M$6:M$23)>0)) -> 7 | O12: 50 | P12: =MATCH(O12,ОСН!$E$1:$E$100,1) -> 30 | Q12: =SUM(N(FREQUENCY((P12<P$6:P$23)*P$6:P$23,P$6:P$23)>0)) -> 10 | R12: 211 | S12: =MATCH(R12,ОСН!$A$1:$A$100,1) -> 40 | T12: =SUM(N(FREQUENCY((S12<S$6:S$23)*S$6:S$23,S$6:S$23)>0)) -> 8 | U12: 12 | V12: =MATCH(U12,ОСН!$G$1:$G$100,1) -> 34 | W12: =SUM(N(FREQUENCY((V12<V$6:V$23)*V$6:V$23,V$6:V$23)>0)) -> 5 | X12: -5 | Y12: =MATCH(X12,ОСН!$C$1:$C$100,1) -> 10 | AA12: =MATCH(Z12,ОСН!$F$1:$F$100,-1)*IF(Z12=0,0,1) -> 0 | AB12: =SUM(N(FREQUENCY((AA12<AA$6:AA$23)*AA$6:AA$23,AA$6:AA$23)>0)) -> 8 | AC12: =SUM(J12,M12,P12,S12,AA12,V12,Y12) -> 207 | AD12: 7
A13: 8 | B13: Антон | C13: 2001-10-13 | D13: =DATEDIF(C13,TODAY(),"y") -> 15 | E13: =LOOKUP(DATEDIF(C13,TODAY(),"y"),{6;7;8;9;10;11;12;13;14;15;16;17;18;19;20;21;22;23;24;25;26;27;28;29;30;31;32;33;34;35;36;37;38;39;40;41;42;43;44;45;46;47;48;49;50;51;52;53;54;55;56;57;58;59;60;61;62;63;64;65;66;67;68;69;70},{"1";"1";"1";"2";"2";"3";"3";"4";"4";"4";"5";"5";"6";"6";"6";"6";"6";"6";"6";"6";"6";"6";"6";"6";"7";"7";"7";"7";"7";"7";"7";"7";"7";"7";"8";"8";"8";"8";"8";"8";"8";"8";"8";"8";"9";"9";"9";"9";"9";"9";"9";"9";"9";"9";"10";"10";"10";"10";"10";"10";"10";"10";"10";"10";"11"}) -> 4 | F13: муж | G13: 00-00-0000016 | H13: №15 | I13: 3 | J13: =IF(I13>50,100,MATCH(I13,ОСН!$B$1:$B$100,0)*IF(I13=0,0,1))*IF(I13=0,0,1) -> 3 | K13: =SUM(N(FREQUENCY((J13<J$6:J$23)*J$6:J$23,J$6:J$23)>0)) -> 12 | L13: 44.6 | M13: =IFERROR(MATCH(L13,ОСН!$D$1:$D$100,-1),MATCH("0:"&L13,ОСН!$D$1:$D$100,-1)) -> 51 | N13: =SUM(N(FREQUENCY((M13<M$6:M$23)*M$6:M$23,M$6:M$23)>0)) -> 7 | O13: 54 | P13: =MATCH(O13,ОСН!$E$1:$E$100,1) -> 34 | Q13: =SUM(N(FREQUENCY((P13<P$6:P$23)*P$6:P$23,P$6:P$23)>0)) -> 7 | R13: 198 | S13: =MATCH(R13,ОСН!$A$1:$A$100,1) -> 36 | T13: =SUM(N(FREQUENCY((S13<S$6:S$23)*S$6:S$23,S$6:S$23)>0)) -> 12 | U13: 7 | V13: =MATCH(U13,ОСН!$G$1:$G$100,1) -> 19 | W13: =SUM(N(FREQUENCY((V13<V$6:V$23)*V$6:V$23,V$6:V$23)>0)) -> 10 | X13: -5 | Y13: =MATCH(X13,ОСН!$C$1:$C$100,1) -> 10 | Z13: 18.39 | AA13: =MATCH(Z13,ОСН!$F$1:$F$100,-1)*IF(Z13=0,0,1) -> 24 | AB13: =SUM(N(FREQUENCY((AA13<AA$6:AA$23)*AA$6:AA$23,AA$6:AA$23)>0)) -> 2 | AC13: =SUM(J13,M13,P13,S13,AA13,V13,Y13) -> 177 | AD13: 7
A14: 9 | B14: Константин | C14: 2001-10-13 | D14: =DATEDIF(C14,TODAY(),"y") -> 15 | E14: =LOOKUP(DATEDIF(C14,TODAY(),"y"),{6;7;8;9;10;11;12;13;14;15;16;17;18;19;20;21;22;23;24;25;26;27;28;29;30;31;32;33;34;35;36;37;38;39;40;41;42;43;44;45;46;47;48;49;50;51;52;53;54;55;56;57;58;59;60;61;62;63;64;65;66;67;68;69;70},{"1";"1";"1";"2";"2";"3";"3";"4";"4";"4";"5";"5";"6";"6";"6";"6";"6";"6";"6";"6";"6";"6";"6";"6";"7";"7";"7";"7";"7";"7";"7";"7";"7";"7";"8";"8";"8";"8";"8";"8";"8";"8";"8";"8";"9";"9";"9";"9";"9";"9";"9";"9";"9";"9";"10";"10";"10";"10";"10";"10";"10";"10";"10";"10";"11"}) -> 4 | F14: муж | G14: 00-00-0000017 | H14: №14 | I14: 26 | J14: =IF(I14>50,100,MATCH(I14,ОСН!$B$1:$B$100,0)*IF(I14=0,0,1))*IF(I14=0,0,1) -> 42 | K14: =SUM(N(FREQUENCY((J14<J$6:J$23)*J$6:J$23,J$6:J$23)>0)) -> 2 | L14: 45.4 | M14: =IFERROR(MATCH(L14,ОСН!$D$1:$D$100,-1),MATCH("0:"&L14,ОСН!$D$1:$D$100,-1)) -> 50 | N14: =SUM(N(FREQUENCY((M14<M$6:M$23)*M$6:M$23,M$6:M$23)>0)) -> 8 | O14: 54 | P14: =MATCH(O14,ОСН!$E$1:$E$100,1) -> 34 | Q14: =SUM(N(FREQUENCY((P14<P$6:P$23)*P$6:P$23,P$6:P$23)>0)) -> 7 | R14: 201 | S14: =MATCH(R14,ОСН!$A$1:$A$100,1) -> 37 | T14: =SUM(N(FREQUENCY((S14<S$6:S$23)*S$6:S$23,S$6:S$23)>0)) -> 11 | U14: 8 | V14: =MATCH(U14,ОСН!$G$1:$G$100,1) -> 22 | W14: =SUM(N(FREQUENCY((V14<V$6:V$23)*V$6:V$23,V$6:V$23)>0)) -> 9 | X14: 0 | Y14: =MATCH(X14,ОСН!$C$1:$C$100,1) -> 20 | Z14: 19.58 | AA14: =MATCH(Z14,ОСН!$F$1:$F$100,-1)*IF(Z14=0,0,1) -> 20 | AB14: =SUM(N(FREQUENCY((AA14<AA$6:AA$23)*AA$6:AA$23,AA$6:AA$23)>0)) -> 3 | AC14: =SUM(J14,M14,P14,S14,AA14,V14,Y14) -> 225 | AD14: 8
A15: 10 | B15: Степан | C15: 2001-10-13 | D15: =DATEDIF(C15,TODAY(),"y") -> 15 | E15: =LOOKUP(DATEDIF(C15,TODAY(),"y"),{6;7;8;9;10;11;12;13;14;15;16;17;18;19;20;21;22;23;24;25;26;27;28;29;30;31;32;33;34;35;36;37;38;39;40;41;42;43;44;45;46;47;48;49;50;51;52;53;54;55;56;57;58;59;60;61;62;63;64;65;66;67;68;69;70},{"1";"1";"1";"2";"2";"3";"3";"4";"4";"4";"5";"5";"6";"6";"6";"6";"6";"6";"6";"6";"6";"6";"6";"6";"7";"7";"7";"7";"7";"7";"7";"7";"7";"7";"8";"8";"8";"8";"8";"8";"8";"8";"8";"8";"9";"9";"9";"9";"9";"9";"9";"9";"9";"9";"10";"10";"10";"10";"10";"10";"10";"10";"10";"10";"11"}) -> 4 | F15: муж | G15: 00-00-0000018 | H15: №8 | I15: 0 | J15: 0 | K15: =SUM(N(FREQUENCY((J15<J$6:J$23)*J$6:J$23,J$6:J$23)>0)) -> 14 | L15: 47.6 | M15: =IFERROR(MATCH(L15,ОСН!$D$1:$D$100,-1),MATCH("0:"&L15,ОСН!$D$1:$D$100,-1)) -> 48 | N15: =SUM(N(FREQUENCY((M15<M$6:M$23)*M$6:M$23,M$6:M$23)>0)) -> 9 | O15: 59 | P15: =MATCH(O15,ОСН!$E$1:$E$100,1) -> 39 | Q15: =SUM(N(FREQUENCY((P15<P$6:P$23)*P$6:P$23,P$6:P$23)>0)) -> 4 | R15: 215 | S15: =MATCH(R15,ОСН!$A$1:$A$100,1) -> 42 | T15: =SUM(N(FREQUENCY((S15<S$6:S$23)*S$6:S$23,S$6:S$23)>0)) -> 7 | U15: 6 | V15: =MATCH(U15,ОСН!$G$1:$G$100,1) -> 16 | W15: =SUM(N(FREQUENCY((V15<V$6:V$23)*V$6:V$23,V$6:V$23)>0)) -> 11 | X15: 0 | Y15: =MATCH(X15,ОСН!$C$1:$C$100,1) -> 20 | Z15: 22.2 | AA15: =MATCH(Z15,ОСН!$F$1:$F$100,-1)*IF(Z15=0,0,1) -> 13 | AB15: =SUM(N(FREQUENCY((AA15<AA$6:AA$23)*AA$6:AA$23,AA$6:AA$23)>0)) -> 5 | AC15: =SUM(J15,M15,P15,S15,AA15,V15,Y15) -> 178 | AD15: 9
A16: 11 | B16: Игорь | C16: 2001-10-13 | D16: =DATEDIF(C16,TODAY(),"y") -> 15 | E16: =LOOKUP(DATEDIF(C16,TODAY(),"y"),{6;7;8;9;10;11;12;13;14;15;16;17;18;19;20;21;22;23;24;25;26;27;28;29;30;31;32;33;34;35;36;37;38;39;40;41;42;43;44;45;46;47;48;49;50;51;52;53;54;55;56;57;58;59;60;61;62;63;64;65;66;67;68;69;70},{"1";"1";"1";"2";"2";"3";"3";"4";"4";"4";"5";"5";"6";"6";"6";"6";"6";"6";"6";"6";"6";"6";"6";"6";"7";"7";"7";"7";"7";"7";"7";"7";"7";"7";"8";"8";"8";"8";"8";"8";"8";"8";"8";"8";"9";"9";"9";"9";"9";"9";"9";"9";"9";"9";"10";"10";"10";"10";"10";"10";"10";"10";"10";"10";"11"}) -> 4 | F16: муж | G16: 00-00-0000006 | H16: №16 | I16: 22 | J16: =IF(I16>50,100,MATCH(I16,ОСН!$B$1:$B$100,0)*IF(I16=0,0,1))*IF(I16=0,0,1) -> 34 | K16: =SUM(N(FREQUENCY((J16<J$6:J$23)*J$6:J$23,J$6:J$23)>0)) -> 3 | L16: 52.6 | M16: =IFERROR(MATCH(L16,ОСН!$D$1:$D$100,-1),MATCH("0:"&L16,ОСН!$D$1:$D$100,-1)) -> 42 | N16: =SUM(N(FREQUENCY((M16<M$6:M$23)*M$6:M$23,M$6:M$23)>0)) -> 10 | O16: 41 | P16: =MATCH(O16,ОСН!$E$1:$E$100,1) -> 21 | Q16: =SUM(N(FREQUENCY((P16<P$6:P$23)*P$6:P$23,P$6:P$23)>0)) -> 12 | R16: 195 | S16: =MATCH(R16,ОСН!$A$1:$A$100,1) -> 35 | T16: =SUM(N(FREQUENCY((S16<S$6:S$23)*S$6:S$23,S$6:S$23)>0)) -> 13 | U16: 9 | V16: =MATCH(U16,ОСН!$G$1:$G$100,1) -> 25 | W16: =SUM(N(FREQUENCY((V16<V$6:V$23)*V$6:V$23,V$6:V$23)>0)) -> 8 | X16: 0 | Y16: =MATCH(X16,ОСН!$C$1:$C$100,1) -> 20 | Z16: 22.26 | AA16: =MATCH(Z16,ОСН!$F$1:$F$100,-1)*IF(Z16=0,0,1) -> 13 | AB16: =SUM(N(FREQUENCY((AA16<AA$6:AA$23)*AA$6:AA$23,AA$6:AA$23)>0)) -> 5 | AC16: =SUM(J16,M16,P16,S16,AA16,V16,Y16) -> 190 | AD16: 10
A17: 12 | B17: Максим | C17: 2001-10-13 | D17: =DATEDIF(C17,TODAY(),"y") -> 15 | E17: =LOOKUP(DATEDIF(C17,TODAY(),"y"),{6;7;8;9;10;11;12;13;14;15;16;17;18;19;20;21;22;23;24;25;26;27;28;29;30;31;32;33;34;35;36;37;38;39;40;41;42;43;44;45;46;47;48;49;50;51;52;53;54;55;56;57;58;59;60;61;62;63;64;65;66;67;68;69;70},{"1";"1";"1";"2";"2";"3";"3";"4";"4";"4";"5";"5";"6";"6";"6";"6";"6";"6";"6";"6";"6";"6";"6";"6";"7";"7";"7";"7";"7";"7";"7";"7";"7";"7";"8";"8";"8";"8";"8";"8";"8";"8";"8";"8";"9";"9";"9";"9";"9";"9";"9";"9";"9";"9";"10";"10";"10";"10";"10";"10";"10";"10";"10";"10";"11"}) -> 4 | F17: муж | G17: 00-00-0000002 | H17: №7 | I17: 30 | J17: =IF(I17>50,100,MATCH(I17,ОСН!$B$1:$B$100,0)*IF(I17=0,0,1))*IF(I17=0,0,1) -> 50 | K17: =SUM(N(FREQUENCY((J17<J$6:J$23)*J$6:J$23,J$6:J$23)>0)) -> 1 | L17: 59.1 | M17: =IFERROR(MATCH(L17,ОСН!$D$1:$D$100,-1),MATCH("0:"&L17,ОСН!$D$1:$D$100,-1)) -> 35 | N17: =SUM(N(FREQUENCY((M17<M$6:M$23)*M$6:M$23,M$6:M$23)>0)) -> 11 | O17: 56 | P17: =MATCH(O17,ОСН!$E$1:$E$100,1) -> 36 | Q17: =SUM(N(FREQUENCY((P17<P$6:P$23)*P$6:P$23,P$6:P$23)>0)) -> 6 | R17: 214 | S17: =MATCH(R17,ОСН!$A$1:$A$100,1) -> 42 | T17: =SUM(N(FREQUENCY((S17<S$6:S$23)*S$6:S$23,S$6:S$23)>0)) -> 7 | U17: 10 | V17: =MATCH(U17,ОСН!$G$1:$G$100,1) -> 28 | W17: =SUM(N(FREQUENCY((V17<V$6:V$23)*V$6:V$23,V$6:V$23)>0)) -> 7 | X17: 10 | Y17: =MATCH(X17,ОСН!$C$1:$C$100,1) -> 40 | Z17: 24.25 | AA17: =MATCH(Z17,ОСН!$F$1:$F$100,-1)*IF(Z17=0,0,1) -> 9 | AB17: =SUM(N(FREQUENCY((AA17<AA$6:AA$23)*AA$6:AA$23,AA$6:AA$23)>0)) -> 7 | AC17: =SUM(J17,M17,P17,S17,AA17,V17,Y17) -> 240 | AD17: 11
A18: 13 | B18: Руслан | C18: 2001-10-13 | D18: =DATEDIF(C18,TODAY(),"y") -> 15 | E18: =LOOKUP(DATEDIF(C18,TODAY(),"y"),{6;7;8;9;10;11;12;13;14;15;16;17;18;19;20;21;22;23;24;25;26;27;28;29;30;31;32;33;34;35;36;37;38;39;40;41;42;43;44;45;46;47;48;49;50;51;52;53;54;55;56;57;58;59;60;61;62;63;64;65;66;67;68;69;70},{"1";"1";"1";"2";"2";"3";"3";"4";"4";"4";"5";"5";"6";"6";"6";"6";"6";"6";"6";"6";"6";"6";"6";"6";"7";"7";"7";"7";"7";"7";"7";"7";"7";"7";"8";"8";"8";"8";"8";"8";"8";"8";"8";"8";"9";"9";"9";"9";"9";"9";"9";"9";"9";"9";"10";"10";"10";"10";"10";"10";"10";"10";"10";"10";"11"}) -> 4 | F18: муж | H18: №13 | I18: 9 | J18: =IF(I18>50,100,MATCH(I18,ОСН!$B$1:$B$100,0)*IF(I18=0,0,1))*IF(I18=0,0,1) -> 9 | K18: =SUM(N(FREQUENCY((J18<J$6:J$23)*J$6:J$23,J$6:J$23)>0)) -> 9 | L18: 59.1 | M18: =IFERROR(MATCH(L18,ОСН!$D$1:$D$100,-1),MATCH("0:"&L18,ОСН!$D$1:$D$100,-1)) -> 35 | N18: =SUM(N(FREQUENCY((M18<M$6:M$23)*M$6:M$23,M$6:M$23)>0)) -> 11 | O18: 58 | P18: =MATCH(O18,ОСН!$E$1:$E$100,1) -> 38 | Q18: =SUM(N(FREQUENCY((P18<P$6:P$23)*P$6:P$23,P$6:P$23)>0)) -> 5 | R18: 205 | S18: =MATCH(R18,ОСН!$A$1:$A$100,1) -> 38 | T18: =SUM(N(FREQUENCY((S18<S$6:S$23)*S$6:S$23,S$6:S$23)>0)) -> 10 | U18: 10 | V18: =MATCH(U18,ОСН!$G$1:$G$100,1) -> 28 | W18: =SUM(N(FREQUENCY((V18<V$6:V$23)*V$6:V$23,V$6:V$23)>0)) -> 7 | X18: 0 | Y18: =MATCH(X18,ОСН!$C$1:$C$100,1) -> 20 | AA18: =MATCH(Z18,ОСН!$F$1:$F$100,-1)*IF(Z18=0,0,1) -> 0 | AB18: =SUM(N(FREQUENCY((AA18<AA$6:AA$23)*AA$6:AA$23,AA$6:AA$23)>0)) -> 8 | AC18: =SUM(J18,M18,P18,S18,AA18,V18,Y18) -> 168 | AD18: 11
A19: 14 | B19: Тимофей | C19: 2001-10-13 | D19: =DATEDIF(C19,TODAY(),"y") -> 15 | E19: =LOOKUP(DATEDIF(C19,TODAY(),"y"),{6;7;8;9;10;11;12;13;14;15;16;17;18;19;20;21;22;23;24;25;26;27;28;29;30;31;32;33;34;35;36;37;38;39;40;41;42;43;44;45;46;47;48;49;50;51;52;53;54;55;56;57;58;59;60;61;62;63;64;65;66;67;68;69;70},{"1";"1";"1";"2";"2";"3";"3";"4";"4";"4";"5";"5";"6";"6";"6";"6";"6";"6";"6";"6";"6";"6";"6";"6";"7";"7";"7";"7";"7";"7";"7";"7";"7";"7";"8";"8";"8";"8";"8";"8";"8";"8";"8";"8";"9";"9";"9";"9";"9";"9";"9";"9";"9";"9";"10";"10";"10";"10";"10";"10";"10";"10";"10";"10";"11"}) -> 4 | F19: муж | G19: 00-00-0000015 | H19: №17 | I19: 10 | J19: =IF(I19>50,100,MATCH(I19,ОСН!$B$1:$B$100,0)*IF(I19=0,0,1))*IF(I19=0,0,1) -> 10 | K19: =SUM(N(FREQUENCY((J19<J$6:J$23)*J$6:J$23,J$6:J$23)>0)) -> 8 | L19: 1.18,9 | M19: =IFERROR(MATCH(L19,ОСН!$D$1:$D$100,-1),MATCH("0:"&L19,ОСН!$D$1:$D$100,-1)) -> 20 | N19: =SUM(N(FREQUENCY((M19<M$6:M$23)*M$6:M$23,M$6:M$23)>0)) -> 12 | O19: 68 | P19: =MATCH(O19,ОСН!$E$1:$E$100,1) -> 56 | Q19: =SUM(N(FREQUENCY((P19<P$6:P$23)*P$6:P$23,P$6:P$23)>0)) -> 1 | R19: 194 | S19: =MATCH(R19,ОСН!$A$1:$A$100,1) -> 34 | T19: =SUM(N(FREQUENCY((S19<S$6:S$23)*S$6:S$23,S$6:S$23)>0)) -> 14 | U19: 11 | V19: =MATCH(U19,ОСН!$G$1:$G$100,1) -> 31 | W19: =SUM(N(FREQUENCY((V19<V$6:V$23)*V$6:V$23,V$6:V$23)>0)) -> 6 | X19: 0 | Y19: =MATCH(X19,ОСН!$C$1:$C$100,1) -> 20 | Z19: 30.12 | AA19: 0 | AB19: =SUM(N(FREQUENCY((AA19<AA$6:AA$23)*AA$6:AA$23,AA$6:AA$23)>0)) -> 8 | AC19: =SUM(J19,M19,P19,S19,AA19,V19,Y19) -> 171 | AD19: 12
A20: 15 | B20: Владимир | C20: 2001-10-13 | D20: =DATEDIF(C20,TODAY(),"y") -> 15 | E20: =LOOKUP(DATEDIF(C20,TODAY(),"y"),{6;7;8;9;10;11;12;13;14;15;16;17;18;19;20;21;22;23;24;25;26;27;28;29;30;31;32;33;34;35;36;37;38;39;40;41;42;43;44;45;46;47;48;49;50;51;52;53;54;55;56;57;58;59;60;61;62;63;64;65;66;67;68;69;70},{"1";"1";"1";"2";"2";"3";"3";"4";"4";"4";"5";"5";"6";"6";"6";"6";"6";"6";"6";"6";"6";"6";"6";"6";"7";"7";"7";"7";"7";"7";"7";"7";"7";"7";"8";"8";"8";"8";"8";"8";"8";"8";"8";"8";"9";"9";"9";"9";"9";"9";"9";"9";"9";"9";"10";"10";"10";"10";"10";"10";"10";"10";"10";"10";"11"}) -> 4 | F20: муж | G20: 00-00-0000007 | H20: №11 | I20: 18 | J20: =IF(I20>50,100,MATCH(I20,ОСН!$B$1:$B$100,0)*IF(I20=0,0,1))*IF(I20=0,0,1) -> 26 | K20: =SUM(N(FREQUENCY((J20<J$6:J$23)*J$6:J$23,J$6:J$23)>0)) -> 4 | L20: 0 | M20: 0 | N20: =SUM(N(FREQUENCY((M20<M$6:M$23)*M$6:M$23,M$6:M$23)>0)) -> 13 | O20: 52 | P20: =MATCH(O20,ОСН!$E$1:$E$100,1) -> 32 | Q20: =SUM(N(FREQUENCY((P20<P$6:P$23)*P$6:P$23,P$6:P$23)>0)) -> 8 | R20: 207 | S20: =MATCH(R20,ОСН!$A$1:$A$100,1) -> 39 | T20: =SUM(N(FREQUENCY((S20<S$6:S$23)*S$6:S$23,S$6:S$23)>0)) -> 9 | U20: 6 | V20: =MATCH(U20,ОСН!$G$1:$G$100,1) -> 16 | W20: =SUM(N(FREQUENCY((V20<V$6:V$23)*V$6:V$23,V$6:V$23)>0)) -> 11 | X20: 0 | Y20: =MATCH(X20,ОСН!$C$1:$C$100,1) -> 20 | Z20: 24.08 | AA20: =MATCH(Z20,ОСН!$F$1:$F$100,-1)*IF(Z20=0,0,1) -> 9 | AB20: =SUM(N(FREQUENCY((AA20<AA$6:AA$23)*AA$6:AA$23,AA$6:AA$23)>0)) -> 7 | AC20: =SUM(J20,M20,P20,S20,AA20,V20,Y20) -> 142 | AD20: 13
A21: 16 | B21: Алексей | C21: 2001-10-13 | D21: =DATEDIF(C21,TODAY(),"y") -> 15 | E21: =LOOKUP(DATEDIF(C21,TODAY(),"y"),{6;7;8;9;10;11;12;13;14;15;16;17;18;19;20;21;22;23;24;25;26;27;28;29;30;31;32;33;34;35;36;37;38;39;40;41;42;43;44;45;46;47;48;49;50;51;52;53;54;55;56;57;58;59;60;61;62;63;64;65;66;67;68;69;70},{"1";"1";"1";"2";"2";"3";"3";"4";"4";"4";"5";"5";"6";"6";"6";"6";"6";"6";"6";"6";"6";"6";"6";"6";"7";"7";"7";"7";"7";"7";"7";"7";"7";"7";"8";"8";"8";"8";"8";"8";"8";"8";"8";"8";"9";"9";"9";"9";"9";"9";"9";"9";"9";"9";"10";"10";"10";"10";"10";"10";"10";"10";"10";"10";"11"}) -> 4 | F21: муж | H21: №4 | I21: 15 | J21: =IF(I21>50,100,MATCH(I21,ОСН!$B$1:$B$100,0)*IF(I21=0,0,1))*IF(I21=0,0,1) -> 20 | K21: =SUM(N(FREQUENCY((J21<J$6:J$23)*J$6:J$23,J$6:J$23)>0)) -> 5 | L21: 0 | M21: 0 | N21: =SUM(N(FREQUENCY((M21<M$6:M$23)*M$6:M$23,M$6:M$23)>0)) -> 13 | O21: 50 | P21: =MATCH(O21,ОСН!$E$1:$E$100,1) -> 30 | Q21: =SUM(N(FREQUENCY((P21<P$6:P$23)*P$6:P$23,P$6:P$23)>0)) -> 10 | R21: 235 | S21: =MATCH(R21,ОСН!$A$1:$A$100,1) -> 52 | T21: =SUM(N(FREQUENCY((S21<S$6:S$23)*S$6:S$23,S$6:S$23)>0)) -> 3 | U21: 5 | V21: =MATCH(U21,ОСН!$G$1:$G$100,1) -> 13 | W21: =SUM(N(FREQUENCY((V21<V$6:V$23)*V$6:V$23,V$6:V$23)>0)) -> 12 | X21: 0 | Y21: =MATCH(X21,ОСН!$C$1:$C$100,1) -> 20 | Z21: 22.49 | AA21: =MATCH(Z21,ОСН!$F$1:$F$100,-1)*IF(Z21=0,0,1) -> 12 | AB21: =SUM(N(FREQUENCY((AA21<AA$6:AA$23)*AA$6:AA$23,AA$6:AA$23)>0)) -> 6 | AC21: =SUM(J21,M21,P21,S21,AA21,V21,Y21) -> 147 | AD21: 13
A22: 17 | B22: Иван | C22: 2001-10-13 | D22: =DATEDIF(C22,TODAY(),"y") -> 15 | E22: =LOOKUP(DATEDIF(C22,TODAY(),"y"),{6;7;8;9;10;11;12;13;14;15;16;17;18;19;20;21;22;23;24;25;26;27;28;29;30;31;32;33;34;35;36;37;38;39;40;41;42;43;44;45;46;47;48;49;50;51;52;53;54;55;56;57;58;59;60;61;62;63;64;65;66;67;68;69;70},{"1";"1";"1";"2";"2";"3";"3";"4";"4";"4";"5";"5";"6";"6";"6";"6";"6";"6";"6";"6";"6";"6";"6";"6";"7";"7";"7";"7";"7";"7";"7";"7";"7";"7";"8";"8";"8";"8";"8";"8";"8";"8";"8";"8";"9";"9";"9";"9";"9";"9";"9";"9";"9";"9";"10";"10";"10";"10";"10";"10";"10";"10";"10";"10";"11"}) -> 4 | F22: муж | G22: 00-00-0000009 | H22: №5 | I22: 5 | J22: =IF(I22>50,100,MATCH(I22,ОСН!$B$1:$B$100,0)*IF(I22=0,0,1))*IF(I22=0,0,1) -> 5 | K22: =SUM(N(FREQUENCY((J22<J$6:J$23)*J$6:J$23,J$6:J$23)>0)) -> 11 | L22: 0 | M22: 0 | N22: =SUM(N(FREQUENCY((M22<M$6:M$23)*M$6:M$23,M$6:M$23)>0)) -> 13 | O22: 54 | P22: =MATCH(O22,ОСН!$E$1:$E$100,1) -> 34 | Q22: =SUM(N(FREQUENCY((P22<P$6:P$23)*P$6:P$23,P$6:P$23)>0)) -> 7 | R22: 229 | S22: =MATCH(R22,ОСН!$A$1:$A$100,1) -> 49 | T22: =SUM(N(FREQUENCY((S22<S$6:S$23)*S$6:S$23,S$6:S$23)>0)) -> 5 | U22: 15 | V22: =MATCH(U22,ОСН!$G$1:$G$100,1) -> 40 | W22: =SUM(N(FREQUENCY((V22<V$6:V$23)*V$6:V$23,V$6:V$23)>0)) -> 3 | X22: 0 | Y22: =MATCH(X22,ОСН!$C$1:$C$100,1) -> 20 | AA22: =MATCH(Z22,ОСН!$F$1:$F$100,-1)*IF(Z22=0,0,1) -> 0 | AB22: =SUM(N(FREQUENCY((AA22<AA$6:AA$23)*AA$6:AA$23,AA$6:AA$23)>0)) -> 8 | AC22: =SUM(J22,M22,P22,S22,AA22,V22,Y22) -> 148 | AD22: 13
A23: 18 | B23: Виталий | C23: 2001-10-13 | D23: =DATEDIF(C23,TODAY(),"y") -> 15 | E23: =LOOKUP(DATEDIF(C23,TODAY(),"y"),{6;7;8;9;10;11;12;13;14;15;16;17;18;19;20;21;22;23;24;25;26;27;28;29;30;31;32;33;34;35;36;37;38;39;40;41;42;43;44;45;46;47;48;49;50;51;52;53;54;55;56;57;58;59;60;61;62;63;64;65;66;67;68;69;70},{"1";"1";"1";"2";"2";"3";"3";"4";"4";"4";"5";"5";"6";"6";"6";"6";"6";"6";"6";"6";"6";"6";"6";"6";"7";"7";"7";"7";"7";"7";"7";"7";"7";"7";"8";"8";"8";"8";"8";"8";"8";"8";"8";"8";"9";"9";"9";"9";"9";"9";"9";"9";"9";"9";"10";"10";"10";"10";"10";"10";"10";"10";"10";"10";"11"}) -> 4 | F23: муж | G23: 00-00-0000017 | H23: №18 | I23: 2 | J23: =IF(I23>50,100,MATCH(I23,ОСН!$B$1:$B$100,0)*IF(I23=0,0,1))*IF(I23=0,0,1) -> 2 | K23: =SUM(N(FREQUENCY((J23<J$6:J$23)*J$6:J$23,J$6:J$23)>0)) -> 13 | L23: 0 | M23: 0 | N23: =SUM(N(FREQUENCY((M23<M$6:M$23)*M$6:M$23,M$6:M$23)>0)) -> 13 | O23: 0 | P23: 0 | Q23: =SUM(N(FREQUENCY((P23<P$6:P$23)*P$6:P$23,P$6:P$23)>0)) -> 13 | R23: 0 | S23: 0 | T23: =SUM(N(FREQUENCY((S23<S$6:S$23)*S$6:S$23,S$6:S$23)>0)) -> 15 | U23: 0 | V23: 0 | W23: =SUM(N(FREQUENCY((V23<V$6:V$23)*V$6:V$23,V$6:V$23)>0)) -> 14 | X23: 0 | Y23: 0 | AA23: =MATCH(Z23,ОСН!$F$1:$F$100,-1)*IF(Z23=0,0,1) -> 0 | AB23: =SUM(N(FREQUENCY((AA23<AA$6:AA$23)*AA$6:AA$23,AA$6:AA$23)>0)) -> 8 | AC23: =SUM(J23,M23,P23,S23,AA23,V23,Y23) -> 2 | AD23: 13

Sheet ОСН
A1: 70 | B1: 1 | C1: -10 | D1: 2.00,0 | E1: 3 | F1: 30 | G1: 1
A2: 76 | B2: 2 | C2: -9 | D2: 1.57,0 | E2: 6 | F2: 29.1 | G2: -
A3: 81 | B3: 3 | C3: - | D3: 1.54,0 | E3: 9 | F3: 28.2 | G3: -
A4: 86 | B4: 4 | C4: -8 | D4: 1.52,0 | E4: 12 | F4: 27.4 | G4: 2
A5: 90 | B5: 5 | C5: - | D5: 1.50,0 | E5: 15 | F5: 27 | G5: -
A6: 94 | B6: 6 | C6: -7 | D6: 1.48,0 | E6: 18 | F6: 26.2 | G6: -
A7: 98 | B7: 7 | C7: - | D7: 1.46,0 | E7: 20 | F7: 25.4 | G7: 3
A8: 102 | B8: 8 | C8: -6 | D8: 1.44,0 | E8: 22 | F8: 25 | G8: -
A9: 106 | B9: 9 | C9: - | D9: 1.42,0 | E9: 24 | F9: 24.3 | G9: -
A10: 110 | B10: 10 | C10: -5 | D10: 1.40,0 | E10: 26 | F10: 24 | G10: 4
A11: 114 | B11: - | C11: - | D11: 1.38,0 | E11: 28 | F11: 23.3 | G11: -
A12: 118 | B12: 11 | C12: -4 | D12: 1.36,0 | E12: 30 | F12: 23 | G12: -
A13: 122 | B13: - | C13: - | D13: 1.34,0 | E13: 32 | F13: 22.35 | G13: 5
A14: 126 | B14: 12 | C14: -3 | D14: 1.32,0 | E14: 34 | F14: 22.1 | G14: -
A15: 130 | B15: - | C15: - | D15: 1.30,0 | E15: 35 | F15: 21.45 | G15: -
A16: 134 | B16: 13 | C16: -2 | D16: 1.28,0 | E16: 36 | F16: 21.2 | G16: 6
A17: 138 | B17: - | C17: - | D17: 1.26,0 | E17: 37 | F17: 21 | G17: -
A18: 142 | B18: 14 | C18: -1 | D18: 1.24,0 | E18: 38 | F18: 20.4 | G18: -
A19: 146 | B19: - | C19: - | D19: 1.22,0 | E19: 39 | F19: 20.2 | G19: 7
A20: 150 | B20: 15 | C20: 0 | D20: 1.20,0 | E20: 40 | F20: 20 | G20: -
A21: 153 | B21: - | C21: - | D21: 1.18,0 | E21: 41 | F21: 19.4 | G21: -
A22: 156 | B22: 16 | C22: 1 | D22: 1.16,0 | E22: 42 | F22: 19.2 | G22: 8
A23: 159 | B23: - | C23: - | D23: 1.14,0 | E23: 43 | F23: 19 | G23: -
A24: 162 | B24: 17 | C24: 2 | D24: 1.12,0 | E24: 44 | F24: 18.4 | G24: -
A25: 165 | B25: - | C25: - | D25: 1.10,0 | E25: 45 | F25: 18.2 | G25: 9
A26: 168 | B26: 18 | C26: 3 | D26: 1.09,0 | E26: 46 | F26: 18 | G26: -
A27: 171 | B27: - | C27: - | D27: 1.08,0 | E27: 47 | F27: 17.45 | G27: -
A28: 174 | B28: 19 | C28: 4 | D28: 1.07,0 | E28: 48 | F28: 17.3 | G28: 10
A29: 177 | B29: - | C29: - | D29: 1.06,0 | E29: 49 | F29: 17.15 | G29: -
A30: 180 | B30: 20 | C30: 5 | D30: 1.05,0 | E30: 50 | F30: 17 | G30: -
A31: 183 | B31: - | C31: - | D31: 1.04,0 | E31: 51 | F31: 16.48 | G31: 11
A32: 186 | B32: 21 | C32: 6 | D32: 1.03,0 | E32: 52 | F32: 16.36 | G32: -
A33: 189 | B33: - | C33: - | D33: 1.02,0 | E33: 53 | F33: 16.24 | G33: -
A34: 192 | B34: 22 | C34: 7 | D34: 1.01,0 | E34: 54 | F34: 16.12 | G34: 12
A35: 195 | B35: - | C35: - | D35: 1.00,0 | E35: 55 | F35: 16 | G35: -
A36: 198 | B36: 23 | C36: 8 | D36: 59 | E36: 56 | F36: 15.48 | G36: 13
A37: 201 | B37: - | C37: - | D37: 58 | E37: 57 | F37: 15.36 | G37: -
A38: 204 | B38: 24 | C38: 9 | D38: 57 | E38: 58 | F38: 15.24 | G38: 14
A39: 207 | B39: - | C39: - | D39: 56 | E39: 59 | F39: 15.12 | G39: -
A40: 210 | B40: 25 | C40: 10 | D40: 55 | E40: 60 | F40: 15 | G40: 15
A41: 212 | B41: - | C41: - | D41: 54 | E41: - | F41: 14.5 | G41: -
A42: 214 | B42: 26 | C42: 11 | D42: 53 | E42: 61 | F42: 14.4 | G42: 16
A43: 216 | B43: - | C43: - | D43: 52 | E43: - | F43: 14.3 | G43: -
A44: 218 | B44: 27 | C44: 12 | D44: 51 | E44: 62 | F44: 14.2 | G44: 17
A45: 220 | B45: - | C45: - | D45: 50 | E45: - | F45: 14.1 | G45: -
A46: 222 | B46: 28 | C46: 13 | D46: 49.2 | E46: 63 | F46: 14 | G46: 18
A47: 224 | B47: - | C47: - | D47: 48.4 | E47: - | F47: 13.5 | G47: -
A48: 226 | B48: 29 | C48: 14 | D48: 47.6 | E48: 64 | F48: 13.4 | G48: 19
A49: 228 | B49: - | C49: - | D49: 46.8 | E49: - | F49: 13.3 | G49: -
A50: 230 | B50: 30 | C50: 15 | D50: 46 | E50: 65 | F50: 13.2 | G50: 20
A51: 232 | B51: - | C51: - | D51: 45.2 | E51: - | F51: 13.12 | G51: -
A52: 234 | B52: 31 | C52: 16 | D52: 44.4 | E52: 66 | F52: 13.04 | G52: 21
A53: 236 | B53: - | C53: - | D53: 43.8 | E53: - | F53: 12.56 | G53: -
A54: 238 | B54: 32 | C54: 17 | D54: 43.2 | E54: 67 | F54: 12.48 | G54: 22
A55: 240 | B55: - | C55: - | D55: 42.6 | E55: - | F55: 12.4 | G55: -
A56: 242 | B56: 33 | C56: 18 | D56: 42 | E56: 68 | F56: 12.32 | G56: 23
A57: 244 | B57: - | C57: - | D57: 41.5 | E57: - | F57: 12.24 | G57: -
A58: 246 | B58: 34 | C58: 19 | D58: 41 | E58: 69 | F58: 12.16 | G58: 24
A59: 248 | B59: - | C59: - | D59: 40.5 | E59: - | F59: 12.08 | G59: -
A60: 250 | B60: 35 | C60: - | D60: 40 | E60: 70 | F60: 12 | G60: 25
A61: 252 | B61: - | C61: 20 | D61: 39.6 | E61: - | F61: 11.53 | G61: -
A62: 254 | B62: 36 | C62: - | D62: 39.2 | E62: 71 | F62: 11.46 | G62: 26
A63: 256 | B63: - | C63: - | D63: 38.8 | E63: - | F63: 11.39 | G63: -
A64: 258 | B64: 37 | C64: 21 | D64: 38.4 | E64: 72 | F64: 11.32 | G64: 27
A65: 260 | B65: - | C65: - | D65: 38 | E65: - | F65: 11.25 | G65: -
A66: 262 | B66: 38 | C66: - | D66: 37.6 | E66: 73 | F66: 11.18 | G66: 28
A67: 264 | B67: - | C67: 22 | D67: 37.2 | E67: - | F67: 11.11 | G67: -
A68: 266 | B68: 39 | C68: - | D68: 36.8 | E68: 74 | F68: 11.04 | G68: 29
A69: 268 | B69: - | C69: - | D69: 36.4 | E69: - | F69: 10.57 | G69: -
A70: 270 | B70: 40 | C70: 23 | D70: 36 | E70: 75 | F70: 10.5 | G70: 30
A71: 271 | B71: - | C71: - | D71: 35.6 | E71: - | F71: 10.44 | G71: -
A72: 272 | B72: - | C72: - | D72: 35.2 | E72: 76 | F72: 10.38 | G72: 31
A73: 273 | B73: 41 | C73: 24 | D73: 34.8 | E73: - | F73: 10.32 | G73: -
A74: 274 | B74: - | C74: - | D74: 34.4 | E74: 77 | F74: 10.26 | G74: 32
A75: 275 | B75: - | C75: - | D75: 34 | E75: - | F75: 10.2 | G75: -
A76: 276 | B76: 42 | C76: 25 | D76: 33.6 | E76: 78 | F76: 10.14 | G76: 33
A77: 277 | B77: - | C77: - | D77: 33.2 | E77: - | F77: 10.08 | G77: -
A78: 278 | B78: - | C78: - | D78: 32.8 | E78: 79 | F78: 10.02 | G78: 34
A79: 279 | B79: 43 | C79: 26 | D79: 32.4 | E79: - | F79: 9.56 | G79: -
A80: 280 | B80: - | C80: - | D80: 32 | E80: 80 | F80: 9.5 | G80: 35
A81: 281 | B81: - | C81: - | D81: 31.6 | E81: - | F81: 9.44 | G81: -
A82: 282 | B82: 44 | C82: 27 | D82: 31.2 | E82: 81 | F82: 9.38 | G82: 36
A83: 283 | B83: - | C83: - | D83: 30.8 | E83: - | F83: 9.32 | G83: -
A84: 284 | B84: - | C84: - | D84: 30.5 | E84: 82 | F84: 9.26 | G84: 37
A85: 285 | B85: 45 | C85: 28 | D85: 30.2 | E85: - | F85: 9.2 | G85: -
A86: 286 | B86: - | C86: - | D86: 29.9 | E86: 83 | F86: 9.14 | G86: 38
A87: 287 | B87: - | C87: - | D87: 29.6 | E87: - | F87: 9.08 | G87: -
A88: 288 | B88: 46 | C88: 29 | D88: 29.3 | E88: 84 | F88: 9.02 | G88: 39
A89: 289 | B89: - | C89: - | D89: 29 | E89: - | F89: 8.56 | G89: -
A90: 290 | B90: - | C90: - | D90: 28.7 | E90: 85 | F90: 8.5 | G90: 40
A91: 291 | B91: 47 | C91: 30 | D91: 28.4 | E91: - | F91: 8.45 | G91: -
A92: 292 | B92: - | C92: - | D92: 28.2 | E92: 86 | F92: 8.4 | G92: 41
A93: 293 | B93: - | C93: - | D93: 28 | E93: - | F93: 8.35 | G93: -
A94: 294 | B94: 48 | C94: 31 | D94: 27.8 | E94: 87 | F94: 8.3 | G94: 42
A95: 295 | B95: - | C95: - | D95: 27.6 | E95: - | F95: 8.25 | G95: -
A96: 296 | B96: - | C96: - | D96: 27.4 | E96: 88 | F96: 8.2 | G96: 43
A97: 297 | B97: 49 | C97: 32 | D97: 27.2 | E97: - | F97: 8.15 | G97: -
A98: 298 | B98: - | C98: - | D98: 27 | E98: 89 | F98: 8.1 | G98: 44
A99: 299 | B99: - | C99: - | D99: 26.8 | E99: - | F99: 8.05 | G99: -
A100: 300 | B100: 50 | C100: 33 | D100: 26.6 | E100: 90 | F100: 8 | G100: 45

Sheet плавание (2) (hidden)
A1: плавание | B1: Очки
A2: 25 м
A3: 60.1 | B3: 1
A4: 60.05 | B4: 2
A5: 1.02 | B5: 3
A6: 1 | B6: 4
A7: 58 | B7: 5
A8: 57 | B8: 6
A9: 56 | B9: 7
A10: 55 | B10: 8
A11: 54 | B11: 9
A12: 53 | B12: 10
A13: 52 | B13: 11
A14: 51 | B14: 12
A15: 50 | B15: 13
A16: 49 | B16: 14
A17: 48 | B17: 15
A18: 47 | B18: 16
A19: 46 | B19: 17
A20: 45 | B20: 18
A21: 44.2 | B21: 19
A22: 43.4 | B22: 20
A23: 42.6 | B23: 21
A24: 41.8 | B24: 22
A25: 41 | B25: 23
A26: 40.4 | B26: 24
A27: 39.8 | B27: 25
A28: 39.2 | B28: 26
A29: 38.6 | B29: 27
A30: 38 | B30: 28
A31: 37.5 | B31: 29
A32: 37 | B32: 30
A33: 36.5 | B33: 31
A34: 36 | B34: 32
A35: 35.5 | B35: 33
A36: 35 | B36: 34
A37: 34.5 | B37: 35
A38: 34 | B38: 36
A39: 33.5 | B39: 37
A40: 33 | B40: 38
A41: 32.5 | B41: 39
A42: 32 | B42: 40
A43: 31.6 | B43: 41
A44: 31.2 | B44: 42
A45: 30.8 | B45: 43
A46: 30.4 | B46: 44
A47: 30 | B47: 45
A48: 29.6 | B48: 46
A49: 29.2 | B49: 47
A50: 28.8 | B50: 48
A51: 28.4 | B51: 49
A52: 28 | B52: 50
A53: 27.7 | B53: 51
A54: 27.4 | B54: 52
A55: 27.1 | B55: 53
A56: 26.8 | B56: 54
A57: 26.5 | B57: 55
A58: 26.2 | B58: 56
A59: 25.9 | B59: 57
A60: 25.6 | B60: 58
A61: 25.3 | B61: 59
A62: 25 | B62: 60
A63: 24.7 | B63: 61
A64: 24.4 | B64: 62
A65: 24.1 | B65: 63
A66: 23.8 | B66: 64
A67: 23.5 | B67: 65
A68: 23.2 | B68: 66
A69: 22.9 | B69: 67
A70: 22.6 | B70: 68
A71: 22.3 | B71: 69
A72: 22 | B72: 70
A73: 21.7 | B73: 71
A74: 21.4 | B74: 72
A75: 21.1 | B75: 73
A76: 20.8 | B76: 74
A77: 20.5 | B77: 75
A78: 20.2 | B78: 76
A79: 19.9 | B79: 77
A80: 19.6 | B80: 78
A81: 19.3 | B81: 79
A82: 19 | B82: 80
A83: 18.8 | B83: 81
A84: 18.6 | B84: 82
A85: 18.4 | B85: 83
A86: 18.2 | B86: 84
A87: 18 | B87: 85
A88: 17.8 | B88: 86
A89: 17.6 | B89: 87
A90: 17.4 | B90: 88
A91: 17.2 | B91: 89
A92: 17 | B92: 90
A93: 16.8 | B93: 91
A94: 16.6 | B94: 92
A95: 16.4 | B95: 93
A96: 16.2 | B96: 94
A97: 16 | B97: 95
A98: 15.8 | B98: 96
A99: 15.6 | B99: 97
A100: 15.4 | B100: 98
A101: 15.2 | B101: 99
A102: 15 | B102: 100

Sheet отжимание (2) (hidden)
A1: Стрельба | B1: Очки
A2: ВП 5в
A3: - | B3: 1 | S3: 1
A4: - | B4: 2 | S4: 2
A5: 1 | B5: 3 | S5: 3
A6: - | B6: 4
A7: - | B7: 5
A8: 2 | B8: 6
A9: - | B9: 7
A10: - | B10: 8
A11: 3 | B11: 9
A12: - | B12: 10
A13: - | B13: 11
A14: 4 | B14: 12
A15: - | B15: 13
A16: - | B16: 14
A17: 5 | B17: 15
A18: - | B18: 16
A19: - | B19: 17
A20: 6 | B20: 18
A21: - | B21: 19
A22: - | B22: 20
A23: 7 | B23: 21
A24: - | B24: 22
A25: - | B25: 23
A26: 8 | B26: 24
A27: - | B27: 25
A28: - | B28: 26
A29: 9 | B29: 27
A30: - | B30: 28
A31: - | B31: 29
A32: 10 | B32: 30
A33: - | B33: 31
A34: 11 | B34: 32
A35: - | B35: 33
A36: 12 | B36: 34
A37: - | B37: 35
A38: 13 | B38: 36
A39: - | B39: 37
A40: 14 | B40: 38
A41: - | B41: 39
A42: 15 | B42: 40
A43: - | B43: 41
A44: 16 | B44: 42
A45: - | B45: 43
A46: 17 | B46: 44
A47: - | B47: 45
A48: 18 | B48: 46
A49: - | B49: 47
A50: 19 | B50: 48
A51: - | B51: 49
A52: 20 | B52: 50
A53: 21 | B53: 51
A54: 22 | B54: 52
A55: 23 | B55: 53
A56: 24 | B56: 54
A57: 25 | B57: 55
A58: 26 | B58: 56
A59: 27 | B59: 57
A60: 28 | B60: 58
A61: 29 | B61: 59
A62: 30 | B62: 60
A63: 31 | B63: 61
A64: 32 | B64: 62
A65: 33 | B65: 63
A66: 34 | B66: 64
A67: 35 | B67: 65
A68: 36 | B68: 66
A69: 37 | B69: 67
A70: 38 | B70: 68
A71: 39 | B71: 69
A72: 40 | B72: 70
A73: 42 | B73: 71
A74: 44 | B74: 72
A75: 46 | B75: 73
A76: 48 | B76: 74
A77: 50 | B77: 75
A78: 52 | B78: 76
A79: 54 | B79: 77
A80: 56 | B80: 78
A81: 58 | B81: 79
A82: 60 | B82: 80
A83: 62 | B83: 81
A84: 64 | B84: 82
A85: 66 | B85: 83
A86: 68 | B86: 84
A87: 70 | B87: 85
A88: 72 | B88: 86
A89: 74 | B89: 87
A90: 76 | B90: 88
A91: 78 | B91: 89
A92: 80 | B92: 90
A93: 82 | B93: 91
A94: 84 | B94: 92
A95: 86 | B95: 93
A96: 88 | B96: 94
A97: 90 | B97: 95
A98: 92 | B98: 96
A99: 94 | B99: 97
A100: 96 | B100: 98
A101: 98 | B101: 99
A102: 100 | B102: 100

Sheet Стрельба (2) (hidden)
A1: Стрельба | B1: Очки
A2: ВП 5в
A3: 1 | B3: 1 | S3: 1
A4: 2 | B4: 2 | S4: 2
A5: 3 | B5: 3 | S5: 3
A6: 4 | B6: 4
A7: 5 | B7: 5
A8: 6 | B8: 6
A9: 7 | B9: 7
A10: 8 | B10: 8
A11: 9 | B11: 9
A12: 10 | B12: 10
A13: - | B13: 11
A14: 11 | B14: 12
A15: - | B15: 13
A16: 12 | B16: 14
A17: - | B17: 15
A18: 13 | B18: 16
A19: - | B19: 17
A20: 14 | B20: 18
A21: - | B21: 19
A22: 15 | B22: 20
A23: - | B23: 21
A24: 16 | B24: 22
A25: - | B25: 23
A26: 17 | B26: 24
A27: - | B27: 25
A28: 18 | B28: 26
A29: - | B29: 27
A30: 19 | B30: 28
A31: - | B31: 29
A32: 20 | B32: 30
A33: - | B33: 31
A34: 21 | B34: 32
A35: - | B35: 33
A36: 22 | B36: 34
A37: - | B37: 35
A38: 23 | B38: 36
A39: - | B39: 37
A40: 24 | B40: 38
A41: - | B41: 39
A42: 25 | B42: 40
A43: - | B43: 41
A44: 26 | B44: 42
A45: - | B45: 43
A46: 27 | B46: 44
A47: - | B47: 45
A48: 28 | B48: 46
A49: - | B49: 47
A50: 29 | B50: 48
A51: - | B51: 49
A52: 30 | B52: 50
A53: - | B53: 51
A54: 31 | B54: 52
A55: - | B55: 53
A56: 32 | B56: 54
A57: - | B57: 55
A58: 33 | B58: 56
A59: - | B59: 57
A60: 34 | B60: 58
A61: - | B61: 59
A62: 35 | B62: 60
A63: - | B63: 61
A64: 36 | B64: 62
A65: - | B65: 63
A66: 37 | B66: 64
A67: - | B67: 65
A68: 38 | B68: 66
A69: - | B69: 67
A70: 39 | B70: 68
A71: - | B71: 69
A72: 40 | B72: 70
A73: - | B73: 71
A74: - | B74: 72
A75: 41 | B75: 73
A76: - | B76: 74
A77: - | B77: 75
A78: 42 | B78: 76
A79: - | B79: 77
A80: - | B80: 78
A81: 43 | B81: 79
A82: - | B82: 80
A83: - | B83: 81
A84: 44 | B84: 82
A85: - | B85: 83
A86: - | B86: 84
A87: 45 | B87: 85
A88: - | B88: 86
A89: - | B89: 87
A90: 46 | B90: 88
A91: - | B91: 89
A92: - | B92: 90
A93: 47 | B93: 91
A94: - | B94: 92
A95: - | B95: 93
A96: 48 | B96: 94
A97: - | B97: 95
A98: - | B98: 96
A99: 49 | B99: 97
A100: - | B100: 98
A101: - | B101: 99
A102: 50 | B102: 100

Sheet плавание (hidden)
A1: плавание | B1: Очки
A2: 25 м
A3: 60.1 | B3: 1
A4: 60.05 | B4: 2
A5: 1.02 | B5: 3
A6: 1 | B6: 4
A7: 58 | B7: 5
A8: 57 | B8: 6
A9: 56 | B9: 7
A10: 55 | B10: 8
A11: 54 | B11: 9
A12: 53 | B12: 10
A13: 52 | B13: 11
A14: 51 | B14: 12
A15: 50 | B15: 13
A16: 49 | B16: 14
A17: 48 | B17: 15
A18: 47 | B18: 16
A19: 46 | B19: 17
A20: 45 | B20: 18
A21: 44.2 | B21: 19
A22: 43.4 | B22: 20
A23: 42.6 | B23: 21
A24: 41.8 | B24: 22
A25: 41 | B25: 23
A26: 40.4 | B26: 24
A27: 39.8 | B27: 25
A28: 39.2 | B28: 26
A29: 38.6 | B29: 27
A30: 38 | B30: 28
A31: 37.5 | B31: 29
A32: 37 | B32: 30
A33: 36.5 | B33: 31
A34: 36 | B34: 32
A35: 35.5 | B35: 33
A36: 35 | B36: 34
A37: 34.5 | B37: 35
A38: 34 | B38: 36
A39: 33.5 | B39: 37
A40: 33 | B40: 38
A41: 32.5 | B41: 39
A42: 32 | B42: 40
A43: 31.6 | B43: 41
A44: 31.2 | B44: 42
A45: 30.8 | B45: 43
A46: 30.4 | B46: 44
A47: 30 | B47: 45
A48: 29.6 | B48: 46
A49: 29.2 | B49: 47
A50: 28.8 | B50: 48
A51: 28.4 | B51: 49
A52: 28 | B52: 50
A53: 27.7 | B53: 51
A54: 27.4 | B54: 52
A55: 27.1 | B55: 53
A56: 26.8 | B56: 54
A57: 26.5 | B57: 55
A58: 26.2 | B58: 56
A59: 25.9 | B59: 57
A60: 25.6 | B60: 58
A61: 25.3 | B61: 59
A62: 25 | B62: 60
A63: 24.7 | B63: 61
A64: 24.4 | B64: 62
A65: 24.1 | B65: 63
A66: 23.8 | B66: 64
A67: 23.5 | B67: 65
A68: 23.2 | B68: 66
A69: 22.9 | B69: 67
A70: 22.6 | B70: 68
A71: 22.3 | B71: 69
A72: 22 | B72: 70
A73: 21.7 | B73: 71
A74: 21.4 | B74: 72
A75: 21.1 | B75: 73
A76: 20.8 | B76: 74
A77: 20.5 | B77: 75
A78: 20.2 | B78: 76
A79: 19.9 | B79: 77
A80: 19.6 | B80: 78
A81: 19.3 | B81: 79
A82: 19 | B82: 80
A83: 18.8 | B83: 81
A84: 18.6 | B84: 82
A85: 18.4 | B85: 83
A86: 18.2 | B86: 84
A87: 18 | B87: 85
A88: 17.8 | B88: 86
A89: 17.6 | B89: 87
A90: 17.4 | B90: 88
A91: 17.2 | B91: 89
A92: 17 | B92: 90
A93: 16.8 | B93: 91
A94: 16.6 | B94: 92
A95: 16.4 | B95: 93
A96: 16.2 | B96: 94
A97: 16 | B97: 95
A98: 15.8 | B98: 96
A99: 15.6 | B99: 97
A100: 15.4 | B100: 98
A101: 15.2 | B101: 99
A102: 15 | B102: 100

Sheet отжимание (hidden)
A1: Стрельба | B1: Очки
A2: ВП 5в
A3: - | B3: 1 | S3: 1
A4: - | B4: 2 | S4: 2
A5: 1 | B5: 3 | S5: 3
A6: - | B6: 4
A7: - | B7: 5
A8: 2 | B8: 6
A9: - | B9: 7
A10: - | B10: 8
A11: 3 | B11: 9
A12: - | B12: 10
A13: - | B13: 11
A14: 4 | B14: 12
A15: - | B15: 13
A16: - | B16: 14
A17: 5 | B17: 15
A18: - | B18: 16
A19: - | B19: 17
A20: 6 | B20: 18
A21: - | B21: 19
A22: - | B22: 20
A23: 7 | B23: 21
A24: - | B24: 22
A25: - | B25: 23
A26: 8 | B26: 24
A27: - | B27: 25
A28: - | B28: 26
A29: 9 | B29: 27
A30: - | B30: 28
A31: - | B31: 29
A32: 10 | B32: 30
A33: - | B33: 31
A34: 11 | B34: 32
A35: - | B35: 33
A36: 12 | B36: 34
A37: - | B37: 35
A38: 13 | B38: 36
A39: - | B39: 37
A40: 14 | B40: 38
A41: - | B41: 39
A42: 15 | B42: 40
A43: - | B43: 41
A44: 16 | B44: 42
A45: - | B45: 43
A46: 17 | B46: 44
A47: - | B47: 45
A48: 18 | B48: 46
A49: - | B49: 47
A50: 19 | B50: 48
A51: - | B51: 49
A52: 20 | B52: 50
A53: 21 | B53: 51
A54: 22 | B54: 52
A55: 23 | B55: 53
A56: 24 | B56: 54
A57: 25 | B57: 55
A58: 26 | B58: 56
A59: 27 | B59: 57
A60: 28 | B60: 58
A61: 29 | B61: 59
A62: 30 | B62: 60
A63: 31 | B63: 61
A64: 32 | B64: 62
A65: 33 | B65: 63
A66: 34 | B66: 64
A67: 35 | B67: 65
A68: 36 | B68: 66
A69: 37 | B69: 67
A70: 38 | B70: 68
A71: 39 | B71: 69
A72: 40 | B72: 70
A73: 42 | B73: 71
A74: 44 | B74: 72
A75: 46 | B75: 73
A76: 48 | B76: 74
A77: 50 | B77: 75
A78: 52 | B78: 76
A79: 54 | B79: 77
A80: 56 | B80: 78
A81: 58 | B81: 79
A82: 60 | B82: 80
A83: 62 | B83: 81
A84: 64 | B84: 82
A85: 66 | B85: 83
A86: 68 | B86: 84
A87: 70 | B87: 85
A88: 72 | B88: 86
A89: 74 | B89: 87
A90: 76 | B90: 88
A91: 78 | B91: 89
A92: 80 | B92: 90
A93: 82 | B93: 91
A94: 84 | B94: 92
A95: 86 | B95: 93
A96: 88 | B96: 94
A97: 90 | B97: 95
A98: 92 | B98: 96
A99: 94 | B99: 97
A100: 96 | B100: 98
A101: 98 | B101: 99
A102: 100 | B102: 100

Sheet Стрельба (hidden)
A1: Стрельба | B1: Очки
A2: ВП 5в
A3: 1 | B3: 1 | S3: 1
A4: 2 | B4: 2 | S4: 2
A5: 3 | B5: 3 | S5: 3
A6: 4 | B6: 4
A7: 5 | B7: 5
A8: 6 | B8: 6
A9: 7 | B9: 7
A10: 8 | B10: 8
A11: 9 | B11: 9
A12: 10 | B12: 10
A13: - | B13: 11
A14: 11 | B14: 12
A15: - | B15: 13
A16: 12 | B16: 14
A17: - | B17: 15
A18: 13 | B18: 16
A19: - | B19: 17
A20: 14 | B20: 18
A21: - | B21: 19
A22: 15 | B22: 20
A23: - | B23: 21
A24: 16 | B24: 22
A25: - | B25: 23
A26: 17 | B26: 24
A27: - | B27: 25
A28: 18 | B28: 26
A29: - | B29: 27
A30: 19 | B30: 28
A31: - | B31: 29
A32: 20 | B32: 30
A33: - | B33: 31
A34: 21 | B34: 32
A35: - | B35: 33
A36: 22 | B36: 34
A37: - | B37: 35
A38: 23 | B38: 36
A39: - | B39: 37
A40: 24 | B40: 38
A41: - | B41: 39
A42: 25 | B42: 40
A43: - | B43: 41
A44: 26 | B44: 42
A45: - | B45: 43
A46: 27 | B46: 44
A47: - | B47: 45
A48: 28 | B48: 46
A49: - | B49: 47
A50: 29 | B50: 48
A51: - | B51: 49
A52: 30 | B52: 50
A53: - | B53: 51
A54: 31 | B54: 52
A55: - | B55: 53
A56: 32 | B56: 54
A57: - | B57: 55
A58: 33 | B58: 56
A59: - | B59: 57
A60: 34 | B60: 58
A61: - | B61: 59
A62: 35 | B62: 60
A63: - | B63: 61
A64: 36 | B64: 62
A65: - | B65: 63
A66: 37 | B66: 64
A67: - | B67: 65
A68: 38 | B68: 66
A69: - | B69: 67
A70: 39 | B70: 68
A71: - | B71: 69
A72: 40 | B72: 70
A73: - | B73: 71
A74: - | B74: 72
A75: 41 | B75: 73
A76: - | B76: 74
A77: - | B77: 75
A78: 42 | B78: 76
A79: - | B79: 77
A80: - | B80: 78
A81: 43 | B81: 79
A82: - | B82: 80
A83: - | B83: 81
A84: 44 | B84: 82
A85: - | B85: 83
A86: - | B86: 84
A87: 45 | B87: 85
A88: - | B88: 86
A89: - | B89: 87
A90: 46 | B90: 88
A91: - | B91: 89
A92: - | B92: 90
A93: 47 | B93: 91
A94: - | B94: 92
A95: - | B95: 93
A96: 48 | B96: 94
A97: - | B97: 95
A98: - | B98: 96
A99: 49 | B99: 97
A100: - | B100: 98
A101: - | B101: 99
A102: 50 | B102: 100
